[Event "Early-Titled-Tuesday-Blitz-April-23-2024"]
[Site "Chess.com"]
[Date "2024.04.23"]
[Round "2"]
[White "joshdaruca"]
[Black "dvglko"]
[Result "1-0"]
[WhiteElo "2749"]
[BlackElo "2449"]
[TimeControl "180+1"]
[EndTime "8:17:13 PDT"]
[Termination "joshdaruca won by resignation"]

1. d4 {[%clk 0:03:00.9]} 1... d5 {[%clk 0:03:00.2]} 2. c4 {[%clk 0:02:43.5]}
2... c6 {[%clk 0:03:00.1]} 3. Nc3 {[%clk 0:02:44]} 3... Nf6 {[%clk 0:03:00.6]}
4. Nf3 {[%clk 0:02:44.2]} 4... dxc4 {[%clk 0:03:01]} 5. e3 {[%clk 0:02:44.2]}
5... b5 {[%clk 0:02:58.4]} 6. a4 {[%clk 0:02:44.7]} 6... b4 {[%clk 0:02:57.9]}
7. Na2 {[%clk 0:02:40.5]} 7... e6 {[%clk 0:02:57.6]} 8. Bxc4 {[%clk 0:02:40.8]}
8... Nbd7 {[%clk 0:02:53.9]} 9. Bd2 {[%clk 0:02:39.6]} 9... a5 {[%clk
0:02:51.3]} 10. Nc1 {[%clk 0:02:39.8]} 10... Bb7 {[%clk 0:02:44.5]} 11. Nb3
{[%clk 0:02:38]} 11... Be7 {[%clk 0:02:39.5]} 12. O-O {[%clk 0:02:36.3]} 12...
O-O {[%clk 0:02:38.7]} 13. Qe2 {[%clk 0:02:37]} 13... c5 {[%clk 0:02:37.3]} 14.
Rfd1 {[%clk 0:02:36]} 14... cxd4 {[%clk 0:02:28.3]} 15. Nfxd4 {[%clk 0:02:34.1]}
15... Qb6 {[%clk 0:02:24.5]} 16. Be1 {[%clk 0:02:27]} 16... Rac8 {[%clk
0:02:19.9]} 17. Bb5 {[%clk 0:02:25.1]} 17... Nc5 {[%clk 0:02:03.4]} 18. Nd2
{[%clk 0:02:23.6]} 18... Rfd8 {[%clk 0:01:42.4]} 19. Nc4 {[%clk 0:02:23.3]}
19... Qa7 {[%clk 0:01:41]} 20. f3 {[%clk 0:02:14.1]} 20... Nd5 {[%clk
0:01:29.7]} 21. Bf2 {[%clk 0:02:13.2]} 21... Bf6 {[%clk 0:01:16.9]} 22. Rac1
{[%clk 0:02:06.5]} 22... Bxd4 {[%clk 0:01:06.2]} 23. Rxd4 {[%clk 0:02:04.7]}
23... Nb3 {[%clk 0:01:03.4]} 24. Rcd1 {[%clk 0:02:02.5]} 24... Nxd4 {[%clk
0:01:02.5]} 25. Rxd4 {[%clk 0:02:02.1]} 25... Nf6 {[%clk 0:00:45.1]} 26. Rxd8+
{[%clk 0:01:55.7]} 26... Rxd8 {[%clk 0:00:46]} 27. e4 {[%clk 0:01:56.6]} 27...
Qa8 {[%clk 0:00:26.7]} 28. Bb6 {[%clk 0:01:56.5]} 28... Rc8 {[%clk 0:00:23.9]}
29. Nxa5 {[%clk 0:01:50.8]} 29... Rc1+ {[%clk 0:00:17.7]} 30. Kf2 {[%clk
0:01:50.3]} 30... Bxe4 {[%clk 0:00:18.1]} 31. fxe4 {[%clk 0:01:44.2]} 31...
Nxe4+ {[%clk 0:00:18.4]} 32. Ke3 {[%clk 0:01:44.9]} 32... Qd5 {[%clk 0:00:13.9]}
33. Nb3 {[%clk 0:01:32.9]} 33... Qxb3+ {[%clk 0:00:07.4]} 34. Kxe4 {[%clk
0:01:33.5]} 34... f5+ {[%clk 0:00:07.1]} 35. Kf4 {[%clk 0:01:30.9]} 35... Rc2
{[%clk 0:00:03.8]} 36. Qd3 {[%clk 0:01:26.5]} 36... Qxd3 {[%clk 0:00:02.3]} 37.
Bxd3 {[%clk 0:01:27.4]} 37... Rxb2 {[%clk 0:00:03.2]} 38. a5 {[%clk 0:01:26.4]}
38... Kf7 {[%clk 0:00:03.7]} 39. Ke5 {[%clk 0:01:21.7]} 39... Ra2 {[%clk
0:00:02.1]} 40. Kd4 {[%clk 0:01:22.2]} 40... Kf6 {[%clk 0:00:02.4]} 41. Kc4
{[%clk 0:01:21.1]} 41... e5 {[%clk 0:00:03.3]} 42. Kxb4 {[%clk 0:01:21.2]} 42...
e4 {[%clk 0:00:04]} 43. Bc4 {[%clk 0:01:21.9]} 43... Rb2+ {[%clk 0:00:02.3]} 44.
Kc3 {[%clk 0:01:21.9]} 44... Rb1 {[%clk 0:00:01.8]} 45. Kc2 {[%clk 0:01:20.5]}
45... Ra1 {[%clk 0:00:01.7]} 46. Bd4+ {[%clk 0:01:18]} 46... Kg5 {[%clk
0:00:02.1]} 47. Bxa1 {[%clk 0:01:18.9]} 1-0

[Event "Early-Titled-Tuesday-Blitz-April-23-2024"]
[Site "Chess.com"]
[Date "2024.04.23"]
[Round "2"]
[White "osielchesslover2011"]
[Black "NikitaShnadrygin"]
[Result "0-1"]
[WhiteElo "2198"]
[BlackElo "2686"]
[TimeControl "180+1"]
[EndTime "8:17:13 PDT"]
[Termination "NikitaShnadrygin won on time"]

1. e4 {[%clk 0:03:00]} 1... c5 {[%clk 0:03:00.1]} 2. Nf3 {[%clk 0:03:00.5]} 2...
e6 {[%clk 0:03:00.5]} 3. d4 {[%clk 0:03:00.9]} 3... cxd4 {[%clk 0:03:01.4]} 4.
Nxd4 {[%clk 0:03:01.3]} 4... Nf6 {[%clk 0:03:02]} 5. Nc3 {[%clk 0:03:01.6]} 5...
Nc6 {[%clk 0:03:02]} 6. g3 {[%clk 0:03:00.5]} 6... d5 {[%clk 0:02:55]} 7. exd5
{[%clk 0:02:58.2]} 7... exd5 {[%clk 0:02:55.9]} 8. Bg2 {[%clk 0:02:58.1]} 8...
Bg4 {[%clk 0:02:54.1]} 9. Nxc6 {[%clk 0:02:36.6]} 9... bxc6 {[%clk 0:02:51.1]}
10. Qd4 {[%clk 0:02:36.7]} 10... Be7 {[%clk 0:02:46.1]} 11. O-O {[%clk
0:02:36.3]} 11... O-O {[%clk 0:02:45.5]} 12. Bg5 {[%clk 0:02:34.9]} 12... Be6
{[%clk 0:02:44.4]} 13. Rad1 {[%clk 0:02:33.2]} 13... Rb8 {[%clk 0:02:24.2]} 14.
Rfe1 {[%clk 0:01:52.4]} 14... Rb4 {[%clk 0:02:10.4]} 15. Qe5 {[%clk 0:01:19.3]}
15... Qb8 {[%clk 0:01:29.4]} 16. Qxb8 {[%clk 0:01:03]} 16... Rfxb8 {[%clk
0:01:26.6]} 17. b3 {[%clk 0:01:01.9]} 17... Bd6 {[%clk 0:00:51.7]} 18. Ne2
{[%clk 0:00:46.2]} 18... Ne4 {[%clk 0:00:47.6]} 19. Bxe4 {[%clk 0:00:41.4]}
19... Rxe4 {[%clk 0:00:48.5]} 20. Nd4 {[%clk 0:00:29.1]} 20... Rxe1+ {[%clk
0:00:46.6]} 21. Rxe1 {[%clk 0:00:30]} 21... Bd7 {[%clk 0:00:47]} 22. Bf4 {[%clk
0:00:09.9]} 22... Bxf4 {[%clk 0:00:45]} 23. gxf4 {[%clk 0:00:10.8]} 23... Kf8
{[%clk 0:00:44.8]} 24. Nf3 {[%clk 0:00:10.1]} 24... f6 {[%clk 0:00:43.6]} 25.
Re3 {[%clk 0:00:08.9]} 25... Rb4 {[%clk 0:00:38.9]} 26. Rc3 {[%clk 0:00:01.9]}
26... Rxf4 {[%clk 0:00:38.2]} 27. Kg2 {[%clk 0:00:02.7]} 27... Ke7 {[%clk
0:00:35.6]} 0-1

[Event "Early-Titled-Tuesday-Blitz-April-23-2024"]
[Site "Chess.com"]
[Date "2024.04.23"]
[Round "2"]
[White "Alexei_Gubajdullin"]
[Black "Viktoker"]
[Result "1-0"]
[WhiteElo "2620"]
[BlackElo "2364"]
[TimeControl "180+1"]
[EndTime "8:17:13 PDT"]
[Termination "Alexei_Gubajdullin won by resignation"]

1. Nf3 {[%clk 0:03:00.9]} 1... f5 {[%clk 0:02:57]} 2. g3 {[%clk 0:03:01.1]} 2...
Nf6 {[%clk 0:02:56.9]} 3. Bg2 {[%clk 0:03:01.6]} 3... e6 {[%clk 0:02:56.7]} 4.
O-O {[%clk 0:03:02.2]} 4... Be7 {[%clk 0:02:56.6]} 5. d3 {[%clk 0:03:02.9]} 5...
O-O {[%clk 0:02:54.2]} 6. Nbd2 {[%clk 0:03:03.5]} 6... d6 {[%clk 0:02:54.3]} 7.
e4 {[%clk 0:03:03.8]} 7... e5 {[%clk 0:02:53.1]} 8. c3 {[%clk 0:03:01.1]} 8...
Nc6 {[%clk 0:02:52.6]} 9. Qb3+ {[%clk 0:03:00.8]} 9... Kh8 {[%clk 0:02:52.1]}
10. Ng5 {[%clk 0:03:01.7]} 10... Qe8 {[%clk 0:02:51.9]} 11. Ne6 {[%clk
0:03:02.1]} 11... Bxe6 {[%clk 0:02:51.3]} 12. Qxe6 {[%clk 0:03:01.7]} 12... f4
{[%clk 0:02:43]} 13. gxf4 {[%clk 0:03:01.3]} 13... Nh5 {[%clk 0:02:42.4]} 14.
Nc4 {[%clk 0:02:43.2]} 14... Nxf4 {[%clk 0:02:40.6]} 15. Bxf4 {[%clk 0:02:42.4]}
15... Rxf4 {[%clk 0:02:41.5]} 16. d4 {[%clk 0:02:34.5]} 16... Bf6 {[%clk
0:02:27.9]} 17. Qxe8+ {[%clk 0:02:28]} 17... Rxe8 {[%clk 0:02:28.8]} 18. d5
{[%clk 0:02:27.3]} 18... Ne7 {[%clk 0:02:26.6]} 19. Na5 {[%clk 0:02:27.4]} 19...
Rb8 {[%clk 0:02:24.9]} 20. b4 {[%clk 0:02:24.3]} 20... Ng6 {[%clk 0:02:24.4]}
21. c4 {[%clk 0:02:23.5]} 21... Nh4 {[%clk 0:02:21.5]} 22. f3 {[%clk 0:02:20.7]}
22... Bg5 {[%clk 0:02:15.3]} 23. c5 {[%clk 0:02:18.9]} 23... Rf6 {[%clk
0:02:14.4]} 24. Nc4 {[%clk 0:02:15.8]} 24... Bf4 {[%clk 0:02:05.5]} 25. Rf2
{[%clk 0:02:14.7]} 25... Rbf8 {[%clk 0:01:57.4]} 26. Raf1 {[%clk 0:02:08.1]}
26... Rh6 {[%clk 0:01:54.8]} 27. Bh3 {[%clk 0:01:55.6]} 27... Rff6 {[%clk
0:01:46.3]} 28. Be6 {[%clk 0:01:54.9]} 28... Rfg6+ {[%clk 0:01:43.2]} 29. Kh1
{[%clk 0:01:55]} 29... Nxf3 {[%clk 0:01:33.5]} 30. h3 {[%clk 0:01:52.6]} 30...
Ng5 {[%clk 0:01:26.6]} 31. Rf3 {[%clk 0:01:43.1]} 31... Nxf3 {[%clk 0:01:21.6]}
32. Rxf3 {[%clk 0:01:42]} 32... Rg5 {[%clk 0:00:53.1]} 33. cxd6 {[%clk 0:01:40]}
33... Rhg6 {[%clk 0:00:53.6]} 34. Rf1 {[%clk 0:01:37.3]} 34... Rg2 {[%clk
0:00:49.9]} 35. Bg4 {[%clk 0:01:34.9]} 35... Rh2+ {[%clk 0:00:48]} 36. Kg1
{[%clk 0:01:35.3]} 36... Rc2 {[%clk 0:00:10.9]} 37. Rxf4 {[%clk 0:01:25.6]}
37... exf4 {[%clk 0:00:09.4]} 38. d7 {[%clk 0:01:26.1]} 38... h5 {[%clk
0:00:08.5]} 39. d8=Q+ {[%clk 0:01:22.2]} 39... Kh7 {[%clk 0:00:09]} 40. Ne5
{[%clk 0:01:21.6]} 40... hxg4 {[%clk 0:00:08.1]} 41. Nxg6 {[%clk 0:01:19.7]}
41... f3 {[%clk 0:00:06.9]} 42. Ne5 {[%clk 0:01:15.2]} 42... f2+ {[%clk
0:00:02.3]} 43. Kf1 {[%clk 0:01:15.2]} 43... g3 {[%clk 0:00:03.2]} 44. Qh4+
{[%clk 0:01:14.3]} 44... Kg8 {[%clk 0:00:03.8]} 45. Qxg3 {[%clk 0:01:14.4]}
45... Rc1+ {[%clk 0:00:03.9]} 46. Kxf2 {[%clk 0:01:14.3]} 46... Rc2+ {[%clk
0:00:04.8]} 47. Ke1 {[%clk 0:01:14.6]} 47... Rc1+ {[%clk 0:00:05.2]} 48. Kd2
{[%clk 0:01:14.9]} 1-0

[Event "Early-Titled-Tuesday-Blitz-April-23-2024"]
[Site "Chess.com"]
[Date "2024.04.23"]
[Round "2"]
[White "MetiForce"]
[Black "BurningggIce"]
[Result "1-0"]
[WhiteElo "2940"]
[BlackElo "2442"]
[TimeControl "180+1"]
[EndTime "8:17:15 PDT"]
[Termination "MetiForce won by resignation"]

1. c4 {[%clk 0:02:50.7]} 1... e5 {[%clk 0:02:59.4]} 2. Nc3 {[%clk 0:02:50.1]}
2... Nc6 {[%clk 0:02:59.3]} 3. Nf3 {[%clk 0:02:49.6]} 3... Bb4 {[%clk
0:02:54.3]} 4. Nd5 {[%clk 0:02:46.6]} 4... Bc5 {[%clk 0:02:49.3]} 5. e3 {[%clk
0:02:46.5]} 5... e4 {[%clk 0:02:43.4]} 6. d4 {[%clk 0:02:46.2]} 6... Bd6 {[%clk
0:02:18.7]} 7. Nd2 {[%clk 0:02:42.6]} 7... f5 {[%clk 0:02:18.2]} 8. g4 {[%clk
0:02:41.1]} 8... Nge7 {[%clk 0:02:07.9]} 9. gxf5 {[%clk 0:02:36.6]} 9... Nxd5
{[%clk 0:02:05.6]} 10. cxd5 {[%clk 0:02:34.8]} 10... Ne7 {[%clk 0:02:05.3]} 11.
Rg1 {[%clk 0:02:30.5]} 11... O-O {[%clk 0:02:01.6]} 12. Nxe4 {[%clk 0:02:25.3]}
12... Nxf5 {[%clk 0:01:53.7]} 13. Qg4 {[%clk 0:02:20.1]} 13... Bb4+ {[%clk
0:01:49.2]} 14. Bd2 {[%clk 0:02:10]} 14... Bxd2+ {[%clk 0:01:45.2]} 15. Nxd2
{[%clk 0:02:09]} 15... d6 {[%clk 0:01:39.6]} 16. e4 {[%clk 0:02:02]} 16... Qe7
{[%clk 0:01:38.9]} 17. Qg5 {[%clk 0:01:48.5]} 17... Qxg5 {[%clk 0:01:33.9]} 18.
Rxg5 {[%clk 0:01:49.4]} 18... Nxd4 {[%clk 0:01:34.6]} 19. Rc1 {[%clk 0:01:48.5]}
19... Rf7 {[%clk 0:01:28.2]} 20. Rc4 {[%clk 0:01:40.7]} 20... c5 {[%clk
0:01:21.3]} 21. dxc6 {[%clk 0:01:35.8]} 21... Nxc6 {[%clk 0:01:21.9]} 22. Rc3
{[%clk 0:01:35.9]} 22... Ne5 {[%clk 0:01:20]} 23. Rxe5 {[%clk 0:01:28.1]} 23...
dxe5 {[%clk 0:01:16.4]} 24. Bc4 {[%clk 0:01:28.8]} 24... Bd7 {[%clk 0:00:49.7]}
25. Bxf7+ {[%clk 0:01:28.2]} 25... Kxf7 {[%clk 0:00:49.7]} 26. Rc7 {[%clk
0:01:29.1]} 26... Ke6 {[%clk 0:00:48.1]} 27. Rxb7 {[%clk 0:01:28.4]} 27... a5
{[%clk 0:00:47]} 28. Nb3 {[%clk 0:01:22.8]} 28... Bc6 {[%clk 0:00:43.4]} 29.
Rxg7 {[%clk 0:01:21]} 29... Bxe4 {[%clk 0:00:43.4]} 30. Nc5+ {[%clk 0:01:19.2]}
30... Kd5 {[%clk 0:00:43.3]} 31. Nxe4 {[%clk 0:01:19]} 31... Kxe4 {[%clk
0:00:44.2]} 32. Rxh7 {[%clk 0:01:19.7]} 32... a4 {[%clk 0:00:31.2]} 33. Rh3
{[%clk 0:01:18.2]} 33... Rb8 {[%clk 0:00:29.5]} 34. Re3+ {[%clk 0:01:17.4]}
34... Kd4 {[%clk 0:00:28.2]} 35. b3 {[%clk 0:01:18.3]} 35... a3 {[%clk
0:00:28.3]} 36. Kd2 {[%clk 0:01:16.8]} 36... Rh8 {[%clk 0:00:27.6]} 37. h3
{[%clk 0:01:17]} 37... Rg8 {[%clk 0:00:20.2]} 38. Rg3 {[%clk 0:01:15.3]} 38...
Rc8 {[%clk 0:00:19.4]} 39. Rd3+ {[%clk 0:01:14.3]} 39... Ke4 {[%clk 0:00:19.4]}
40. Rc3 {[%clk 0:01:14.9]} 40... Rf8 {[%clk 0:00:19.1]} 41. Ke2 {[%clk
0:01:12.4]} 41... Rg8 {[%clk 0:00:18.9]} 42. Rc4+ {[%clk 0:01:12.7]} 42... Kd5
{[%clk 0:00:19.1]} 43. Ra4 {[%clk 0:01:12.9]} 43... Rh8 {[%clk 0:00:18.2]} 44.
h4 {[%clk 0:01:13.5]} 44... Rh5 {[%clk 0:00:18.2]} 45. Ke3 {[%clk 0:01:12.6]}
45... Rf5 {[%clk 0:00:18.5]} 46. Rxa3 {[%clk 0:01:12]} 46... Rf4 {[%clk
0:00:19]} 47. Ra4 {[%clk 0:01:12.7]} 1-0

[Event "Early-Titled-Tuesday-Blitz-April-23-2024"]
[Site "Chess.com"]
[Date "2024.04.23"]
[Round "2"]
[White "Bauman_Guy"]
[Black "ansko1999"]
[Result "1-0"]
[WhiteElo "2922"]
[BlackElo "2617"]
[TimeControl "180+1"]
[EndTime "8:17:16 PDT"]
[Termination "Bauman_Guy won by resignation"]

1. e4 {[%clk 0:03:00.9]} 1... c5 {[%clk 0:02:59.9]} 2. Nf3 {[%clk 0:03:01.2]}
2... Nf6 {[%clk 0:03:00]} 3. Nc3 {[%clk 0:03:00.1]} 3... d5 {[%clk 0:02:59.2]}
4. exd5 {[%clk 0:03:01]} 4... Nxd5 {[%clk 0:03:00.1]} 5. Bb5+ {[%clk 0:03:01.1]}
5... Bd7 {[%clk 0:03:00.8]} 6. Ne5 {[%clk 0:03:00.4]} 6... Bxb5 {[%clk 0:02:48]}
7. Qf3 {[%clk 0:02:55.6]} 7... f6 {[%clk 0:02:35.8]} 8. Nxb5 {[%clk 0:02:53.3]}
8... Nb4 {[%clk 0:01:58.9]} 9. Qxb7 {[%clk 0:02:42.1]} 9... fxe5 {[%clk
0:01:52.4]} 10. Nc7+ {[%clk 0:02:36.5]} 10... Kf7 {[%clk 0:01:46.2]} 11. Qf3+
{[%clk 0:02:23.9]} 11... Kg6 {[%clk 0:01:29.7]} 12. Qe4+ {[%clk 0:02:23.5]}
12... Kf6 {[%clk 0:01:23.2]} 13. Nxa8 {[%clk 0:02:22.5]} 13... Qd4 {[%clk
0:01:14.3]} 14. Qxd4 {[%clk 0:02:12.6]} 14... exd4 {[%clk 0:01:09]} 15. Kd1
{[%clk 0:02:07.1]} 15... N4a6 {[%clk 0:00:57.3]} 16. a3 {[%clk 0:01:49.3]} 16...
e5 {[%clk 0:00:39]} 17. b4 {[%clk 0:01:45]} 17... cxb4 {[%clk 0:00:39.3]} 18.
axb4 {[%clk 0:01:45.2]} 18... Bxb4 {[%clk 0:00:39.5]} 19. Ba3 {[%clk 0:01:42.6]}
19... Bxa3 {[%clk 0:00:21.6]} 20. Rxa3 {[%clk 0:01:43.5]} 20... Rc8 {[%clk
0:00:21.7]} 21. c3 {[%clk 0:01:34.2]} 21... dxc3 {[%clk 0:00:20.5]} 22. dxc3
{[%clk 0:01:27.6]} 22... Rc6 {[%clk 0:00:16.4]} 23. Ke2 {[%clk 0:01:22.5]} 23...
Nd7 {[%clk 0:00:16.8]} 24. Rd1 {[%clk 0:01:03.6]} 24... Ndc5 {[%clk 0:00:16.7]}
25. Rd8 {[%clk 0:01:03.2]} 25... Ne4 {[%clk 0:00:16.6]} 26. c4 {[%clk
0:00:59.6]} 26... Nb4 {[%clk 0:00:12.4]} 27. f3 {[%clk 0:00:53.7]} 27... Ng5
{[%clk 0:00:11.1]} 28. Rxa7 {[%clk 0:00:49.4]} 28... Rxc4 {[%clk 0:00:11.5]} 29.
Rd6+ {[%clk 0:00:48.2]} 29... Ne6 {[%clk 0:00:10.7]} 30. Nc7 {[%clk 0:00:43.6]}
30... Rc2+ {[%clk 0:00:09.4]} 31. Kd1 {[%clk 0:00:42.8]} 31... Rc6 {[%clk
0:00:05.2]} 32. Rxe6+ {[%clk 0:00:39.8]} 32... Rxe6 {[%clk 0:00:05.1]} 33. Nxe6
{[%clk 0:00:40.7]} 33... Kxe6 {[%clk 0:00:04.1]} 34. Rxg7 {[%clk 0:00:40.7]} 1-0

[Event "Early-Titled-Tuesday-Blitz-April-23-2024"]
[Site "Chess.com"]
[Date "2024.04.23"]
[Round "2"]
[White "CSB7"]
[Black "komogro"]
[Result "1-0"]
[WhiteElo "2811"]
[BlackElo "2548"]
[TimeControl "180+1"]
[EndTime "8:17:17 PDT"]
[Termination "CSB7 won on time"]

1. d4 {[%clk 0:03:00.9]} 1... Nf6 {[%clk 0:02:59.5]} 2. c4 {[%clk 0:03:00.4]}
2... e6 {[%clk 0:02:58.1]} 3. Nf3 {[%clk 0:02:59.8]} 3... Bb4+ {[%clk
0:02:58.4]} 4. Nbd2 {[%clk 0:02:55]} 4... b6 {[%clk 0:02:58]} 5. g3 {[%clk
0:02:52]} 5... Ba6 {[%clk 0:02:42.4]} 6. Qc2 {[%clk 0:02:36.7]} 6... O-O {[%clk
0:02:41.7]} 7. Bg2 {[%clk 0:02:33.8]} 7... Bb7 {[%clk 0:02:41.5]} 8. O-O {[%clk
0:02:25]} 8... Bxd2 {[%clk 0:02:35.6]} 9. Bxd2 {[%clk 0:02:22.4]} 9... Be4
{[%clk 0:02:34.9]} 10. Qb3 {[%clk 0:02:18.8]} 10... c5 {[%clk 0:02:26.2]} 11.
Rfd1 {[%clk 0:02:09.6]} 11... Nc6 {[%clk 0:02:24.7]} 12. dxc5 {[%clk 0:02:04.4]}
12... bxc5 {[%clk 0:02:23.9]} 13. Bc3 {[%clk 0:02:01.6]} 13... d6 {[%clk
0:01:56.6]} 14. Rd2 {[%clk 0:01:51.3]} 14... Qe7 {[%clk 0:01:47.8]} 15. Rad1
{[%clk 0:01:48.8]} 15... e5 {[%clk 0:01:20]} 16. e3 {[%clk 0:01:26.4]} 16...
Rfd8 {[%clk 0:01:00.8]} 17. Qa4 {[%clk 0:01:21.5]} 17... Rac8 {[%clk 0:00:47.7]}
18. a3 {[%clk 0:01:19.8]} 18... a5 {[%clk 0:00:45.6]} 19. h3 {[%clk 0:00:57.2]}
19... h6 {[%clk 0:00:45.4]} 20. Kh2 {[%clk 0:00:56.2]} 20... Rb8 {[%clk
0:00:38]} 21. Nh4 {[%clk 0:00:54]} 21... Bxg2 {[%clk 0:00:37.3]} 22. Kxg2 {[%clk
0:00:52.2]} 22... Ne4 {[%clk 0:00:37]} 23. Qxc6 {[%clk 0:00:50.6]} 23... Nxd2
{[%clk 0:00:28.1]} 24. Rxd2 {[%clk 0:00:51.5]} 24... Qb7 {[%clk 0:00:04.4]} 25.
Qxb7 {[%clk 0:00:50.1]} 25... Rxb7 {[%clk 0:00:05.3]} 26. Bxe5 {[%clk
0:00:45.1]} 26... Re7 {[%clk 0:00:02]} 27. Bc3 {[%clk 0:00:42.1]} 27... Red7
{[%clk 0:00:01.5]} 28. Bxa5 {[%clk 0:00:41.2]} 28... Rb8 {[%clk 0:00:01.3]} 29.
Nf5 {[%clk 0:00:40.2]} 1-0

[Event "Early-Titled-Tuesday-Blitz-April-23-2024"]
[Site "Chess.com"]
[Date "2024.04.23"]
[Round "2"]
[White "MikhailBLR"]
[Black "valeriocarnicelli"]
[Result "0-1"]
[WhiteElo "2317"]
[BlackElo "2547"]
[TimeControl "180+1"]
[EndTime "8:17:17 PDT"]
[Termination "valeriocarnicelli won on time"]

1. d4 {[%clk 0:03:00.9]} 1... d5 {[%clk 0:02:59.2]} 2. Nc3 {[%clk 0:03:00.8]}
2... Nf6 {[%clk 0:02:58.9]} 3. e4 {[%clk 0:02:59.6]} 3... e6 {[%clk 0:02:59.2]}
4. f3 {[%clk 0:02:54.8]} 4... c5 {[%clk 0:02:57]} 5. exd5 {[%clk 0:02:45.7]}
5... cxd4 {[%clk 0:02:53.8]} 6. Qxd4 {[%clk 0:02:40.6]} 6... Nc6 {[%clk
0:02:53.8]} 7. Bb5 {[%clk 0:02:30]} 7... exd5 {[%clk 0:02:46.4]} 8. Bg5 {[%clk
0:02:25.7]} 8... Be7 {[%clk 0:02:41.1]} 9. O-O-O {[%clk 0:02:22.2]} 9... O-O
{[%clk 0:02:40.5]} 10. Qh4 {[%clk 0:02:04.7]} 10... Be6 {[%clk 0:02:36.9]} 11.
Nge2 {[%clk 0:02:00.1]} 11... h6 {[%clk 0:02:35.7]} 12. Bxh6 {[%clk 0:01:59.8]}
12... gxh6 {[%clk 0:02:30]} 13. Qxh6 {[%clk 0:01:59.7]} 13... Nh7 {[%clk
0:02:15.2]} 14. f4 {[%clk 0:01:43.7]} 14... Qc8 {[%clk 0:01:35.5]} 15. Ng3
{[%clk 0:01:25.2]} 15... f5 {[%clk 0:01:20.1]} 16. Nh5 {[%clk 0:01:08.5]} 16...
Rf7 {[%clk 0:01:20.2]} 17. Rhe1 {[%clk 0:01:04.5]} 17... Nd8 {[%clk 0:01:17.2]}
18. Nxd5 {[%clk 0:00:57.1]} 18... Bxd5 {[%clk 0:01:11.8]} 19. Rxd5 {[%clk
0:00:58]} 19... Kh8 {[%clk 0:01:01.2]} 20. Bd7 {[%clk 0:00:35.8]} 20... Qc4
{[%clk 0:00:54.4]} 21. Rxf5 {[%clk 0:00:35.9]} 21... Qxa2 {[%clk 0:00:46.3]} 22.
Be6 {[%clk 0:00:21.4]} 22... Qa1+ {[%clk 0:00:39]} 23. Kd2 {[%clk 0:00:19.7]}
23... Bb4+ {[%clk 0:00:39.9]} 24. Kd3 {[%clk 0:00:16.1]} 24... Qa6+ {[%clk
0:00:39.8]} 25. c4 {[%clk 0:00:10.8]} 25... Nxe6 {[%clk 0:00:29.6]} 26. Rxf7
{[%clk 0:00:09.5]} 26... Nc5+ {[%clk 0:00:28.3]} 27. Kc2 {[%clk 0:00:03.1]}
27... Qxh6 {[%clk 0:00:28.3]} 0-1